[Event "St Kilda East and Caulfield Chess Club RAPID Term 3, 2025"]
[Site "st kilda east, Australia"]
[Date "2025.07.24"]
[Round "6.2"]
[White "Wang, Noah"]
[Black "Bambridge, Greg"]
[Result "0-1"]
[TimeControl "13 minutes per game plus 2 seconds from move 1"]
[WhiteElo "936"]
[BlackElo "1081"]

1. e4 {[%clk 00:13:00]} {[%emt 00:00:01]} e5 {[%clk 00:12:59]} {[%emt
00:00:03]} 2. Nf3 {[%clk 00:13:00]} {[%emt 00:00:02]} f5 {[%clk 00:13:00]}
{[%emt 00:00:02]} 3. Nxe5 {[%clk 00:12:43]} {[%emt 00:00:19]} Qf6 {[%clk
00:13:00]} {[%emt 00:00:02]} 4. d4 {[%clk 00:12:15]} {[%emt 00:00:30]} d6
{[%clk 00:13:01]} {[%emt 00:00:01]} 5. Nc4 {[%clk 00:11:37]} {[%emt 00:00:40]}
fxe4 {[%clk 00:13:01]} {[%emt 00:00:01]} 6. Be2 {[%clk 00:11:26]} {[%emt
00:00:13]} Qd8 {[%clk 00:12:54]} {[%emt 00:00:09]} 7. Nc3 {[%clk 00:11:24]}
{[%emt 00:00:03]} Nf6 {[%clk 00:12:55]} {[%emt 00:00:02]} 8. Bg5 {[%clk
00:11:19]} {[%emt 00:00:07]} Be7 {[%clk 00:12:35]} {[%emt 00:00:22]} 9. Qd2
{[%clk 00:10:41]} {[%emt 00:00:40]} O-O {[%clk 00:12:34]} {[%emt 00:00:03]} 10.
O-O {[%clk 00:10:26]} {[%emt 00:00:16]} d5 {[%clk 00:12:35]} {[%emt 00:00:02]}
11. Ne3 {[%clk 00:10:21]} {[%emt 00:00:06]} c6 {[%clk 00:12:34]} {[%emt
00:00:04]} 12. a3 {[%clk 00:10:04]} {[%emt 00:00:20]} Na6 {[%clk 00:11:49]}
{[%emt 00:00:47]} 13. b4 {[%clk 00:09:27]} {[%emt 00:00:38]} Nc7 {[%clk
00:11:50]} {[%emt 00:00:02]} 14. Rab1 {[%clk 00:08:16]} {[%emt 00:01:13]} Ne6
{[%clk 00:11:50]} {[%emt 00:00:02]} 15. Bd1 {[%clk 00:07:34]} {[%emt 00:00:44]}
Nxg5 {[%clk 00:11:47]} {[%emt 00:00:05]} 16. Ne2 {[%clk 00:07:05]} {[%emt
00:00:32]} Ne6 {[%clk 00:10:31]} {[%emt 00:01:18]} 17. c3 {[%clk 00:07:00]}
{[%emt 00:00:06]} Bd6 {[%clk 00:10:27]} {[%emt 00:00:06]} 18. Ng3 {[%clk
00:06:59]} {[%emt 00:00:04]} Nf4 {[%clk 00:10:08]} {[%emt 00:00:21]} 19. Ne2
{[%clk 00:06:49]} {[%emt 00:00:11]} Nxe2+ {[%clk 00:09:55]} {[%emt 00:00:08]}
20. Bxe2 {[%clk 00:06:51]} Qe8 {[%clk 00:09:43]} {[%emt 00:00:21]} 21. c4
{[%clk 00:06:41]} {[%emt 00:00:11]} Qg6 {[%clk 00:09:41]} {[%emt 00:00:03]} 22.
Kh1 {[%clk 00:06:23]} {[%emt 00:00:21]} Qh6 {[%clk 00:09:40]} {[%emt 00:00:03]}
23. Kg1 {[%clk 00:06:23]} {[%emt 00:00:02]} Qxh2# {[%clk 00:00:00]} {[%emt
00:00:04]} 0-1

[Event "St Kilda East and Caulfield Chess Club RAPID Term 3, 2025"]
[Site "st kilda east, Australia"]
[Date "2025.07.24"]
[Round "6.6"]
[White "Yong, Leonard"]
[Black "Nash, Paul"]
[Result "1-0"]
[TimeControl "13 minutes per game plus 2 seconds from move 1"]
[WhiteElo "368"]
[BlackElo "730"]

1. e4 {[%clk 00:13:00]} e5 {[%clk 00:13:01]} 2. Nf3 {[%clk 00:13:01]} {[%emt
00:00:01]} Nc6 {[%clk 00:13:02]} 3. Nc3 {[%clk 00:13:01]} {[%emt 00:00:02]} Nf6
{[%clk 00:12:59]} {[%emt 00:00:06]} 4. d3 {[%clk 00:13:02]} {[%emt 00:00:02]}
Bb4 {[%clk 00:12:49]} {[%emt 00:00:11]} 5. Bd2 {[%clk 00:13:00]} {[%emt
00:00:04]} O-O {[%clk 00:12:46]} {[%emt 00:00:05]} 6. Be2 {[%clk 00:13:01]}
{[%emt 00:00:02]} Re8 {[%clk 00:12:37]} {[%emt 00:00:10]} 7. O-O {[%clk
00:13:00]} {[%emt 00:00:03]} d5 {[%clk 00:12:20]} {[%emt 00:00:19]} 8. exd5
{[%clk 00:12:29]} {[%emt 00:00:33]} Nxd5 {[%clk 00:12:10]} {[%emt 00:00:12]} 9.
Nxd5 {[%clk 00:12:25]} {[%emt 00:00:06]} Qxd5 {[%clk 00:12:02]} {[%emt
00:00:11]} 10. c4 {[%clk 00:12:14]} {[%emt 00:00:13]} Qa5 {[%clk 00:11:47]}
{[%emt 00:00:17]} 11. b3 {[%clk 00:11:40]} {[%emt 00:00:36]} Bf5 {[%clk
00:11:41]} {[%emt 00:00:08]} 12. Bxb4 {[%clk 00:11:21]} {[%emt 00:00:21]} Qxb4
{[%clk 00:11:29]} {[%emt 00:00:15]} 13. Nh4 {[%clk 00:11:15]} {[%emt 00:00:08]}
Be6 {[%clk 00:11:04]} {[%emt 00:00:26]} 14. Bg4 {[%emt 00:00:44]} Nd4 {[%clk
00:10:28]} 15. Re1 {[%clk 00:10:39]} {[%emt 00:00:34]} Bxg4 {[%clk 00:10:15]}
{[%emt 00:00:15]} 16. Qxg4 {[%clk 00:10:35]} {[%emt 00:00:04]} Nc2 {[%clk
00:10:11]} {[%emt 00:00:07]} 17. Nf5 {[%clk 00:10:14]} {[%emt 00:00:24]} g6
{[%clk 00:09:43]} {[%emt 00:00:30]} 18. Nh6+ {[%clk 00:10:13]} {[%emt
00:00:03]} Kg7 {[%clk 00:09:36]} {[%emt 00:00:09]} 19. Qg5 {[%clk 00:10:08]}
{[%emt 00:00:07]} Qe7 {[%clk 00:09:07]} {[%emt 00:00:29]} 20. Nf5+ {[%clk
00:10:05]} {[%emt 00:00:08]} 1-0

[Event "St Kilda East and Caulfield Chess Club RAPID Term 3, 2025"]
[Site "st kilda east, Australia"]
[Date "2025.07.24"]
[Round "7.4"]
[White "Lopata, Felix"]
[Black "Nakada, Kazu"]
[Result "1-0"]
[TimeControl "13 minutes per game plus 2 seconds from move 1"]
[WhiteElo "1088"]
[BlackElo "802"]

1. d4 {[%clk 00:13:00]} {[%emt 00:00:02]} d5 {[%clk 00:13:01]} {[%emt
00:00:01]} 2. c4 {[%clk 00:13:01]} {[%emt 00:00:01]} c6 {[%clk 00:13:01]}
{[%emt 00:00:02]} 3. Nc3 {[%clk 00:13:01]} Nf6 {[%clk 00:13:02]} {[%emt
00:00:01]} 4. cxd5 {[%clk 00:13:02]} {[%emt 00:00:02]} cxd5 {[%clk 00:12:59]}
{[%emt 00:00:05]} 5. Bg5 {[%clk 00:13:00]} {[%emt 00:00:04]} Nc6 {[%clk
00:12:48]} {[%emt 00:00:13]} 6. e3 {[%clk 00:12:59]} {[%emt 00:00:03]} h6
{[%clk 00:12:43]} {[%emt 00:00:08]} 7. Bh4 {[%clk 00:12:57]} {[%emt 00:00:04]}
e6 {[%clk 00:12:28]} {[%emt 00:00:17]} 8. Nf3 {[%clk 00:12:54]} {[%emt
00:00:05]} Bb4 {[%clk 00:12:27]} {[%emt 00:00:04]} 9. Bd3 {[%clk 00:12:39]}
{[%emt 00:00:17]} Qe7 {[%clk 00:11:51]} {[%emt 00:00:37]} 10. O-O {[%clk
00:12:35]} {[%emt 00:00:07]} Bxc3 {[%clk 00:11:48]} {[%emt 00:00:05]} 11. bxc3
{[%clk 00:12:34]} {[%emt 00:00:02]} e5 {[%clk 00:11:48]} {[%emt 00:00:02]} 12.
Bb5 {[%clk 00:11:59]} {[%emt 00:00:38]} a6 {[%clk 00:11:48]} {[%emt 00:00:02]}
13. Bxc6+ {[%clk 00:11:58]} {[%emt 00:00:03]} bxc6 {[%clk 00:11:45]} {[%emt
00:00:05]} 14. Nxe5 {[%clk 00:11:57]} {[%emt 00:00:03]} Qe6 {[%clk 00:11:24]}
{[%emt 00:00:22]} 15. Bxf6 {[%clk 00:11:33]} {[%emt 00:00:27]} gxf6 {[%clk
00:11:18]} {[%emt 00:00:08]} 16. Nd3 {[%clk 00:11:19]} {[%emt 00:00:17]} Rg8
{[%clk 00:10:57]} {[%emt 00:00:22]} 17. Nf4 {[%clk 00:11:19]} {[%emt 00:00:02]}
Qf5 {[%clk 00:10:45]} {[%emt 00:00:14]} 18. Qf3 {[%clk 00:10:34]} {[%emt
00:00:48]} Rg5 {[%clk 00:10:10]} {[%emt 00:00:36]} 19. e4 {[%clk 00:10:11]}
{[%emt 00:00:26]} dxe4 {[%clk 00:10:04]} {[%emt 00:00:07]} 20. Rfe1 {[%clk
00:10:11]} {[%emt 00:00:03]} Be6 {[%clk 00:09:36]} {[%emt 00:00:30]} 21. Rxe4
{[%clk 00:09:56]} {[%emt 00:00:16]} Kd7 {[%clk 00:09:04]} {[%emt 00:00:34]} 22.
Qe3 {[%clk 00:08:54]} {[%emt 00:01:04]} Bd5 {[%clk 00:06:55]} {[%emt 00:02:11]}
23. Nxd5 {[%clk 00:08:47]} {[%emt 00:00:10]} cxd5 {[%clk 00:06:49]} {[%emt
00:00:07]} 24. Re7+ {[%clk 00:08:44]} {[%emt 00:00:06]} Kd6 {[%clk 00:06:47]}
{[%emt 00:00:03]} 25. Rxf7 {[%clk 00:08:04]} {[%emt 00:00:43]} Qe6 {[%clk
00:05:06]} {[%emt 00:01:43]} 26. Qf4+ {[%clk 00:07:31]} {[%emt 00:00:35]} Re5
{[%clk 00:04:09]} {[%emt 00:00:59]} 27. dxe5+ {[%clk 00:07:30]} {[%emt
00:00:04]} Qxe5 {[%clk 00:04:07]} {[%emt 00:00:03]} 28. Rxf6+ {[%clk 00:07:29]}
{[%emt 00:00:03]} 1-0

[Event "St Kilda East and Caulfield Chess Club RAPID Term 3, 2025"]
[Site "st kilda east, Australia"]
[Date "2025.07.24"]
[Round "7.6"]
[White "Kovalenko, Kiy"]
[Black "Cukierman, David"]
[Result "1-0"]
[TimeControl "13 minutes per game plus 2 seconds from move 1"]
[WhiteElo "839"]
[BlackElo "551"]

1. e4 {[%clk 00:13:00]} {[%emt 00:00:02]} e5 {[%clk 00:13:01]} {[%emt
00:00:01]} 2. Nf3 {[%clk 00:13:01]} {[%emt 00:00:03]} Nc6 {[%clk 00:13:02]} 3.
Bc4 {[%clk 00:13:02]} {[%emt 00:00:01]} Nf6 {[%clk 00:12:50]} {[%emt 00:00:14]}
4. d4 {[%clk 00:13:02]} {[%emt 00:00:02]} exd4 {[%clk 00:12:47]} {[%emt
00:00:05]} 5. O-O {[%clk 00:13:01]} {[%emt 00:00:02]} Na5 {[%clk 00:12:36]}
{[%emt 00:00:12]} 6. Qxd4 {[%clk 00:12:02]} {[%emt 00:01:02]} Nxc4 {[%clk
00:11:57]} {[%emt 00:00:42]} 7. Qxc4 {[%clk 00:12:02]} {[%emt 00:00:02]} d5
{[%clk 00:11:52]} {[%emt 00:00:07]} 8. exd5 {[%clk 00:12:01]} {[%emt 00:00:03]}
Nxd5 {[%clk 00:11:39]} {[%emt 00:00:14]} 9. Re1+ {[%clk 00:11:39]} {[%emt
00:00:24]} Be6 {[%clk 00:11:38]} {[%emt 00:00:04]} 10. Ng5 {[%clk 00:11:20]}
{[%emt 00:00:21]} Qd7 {[%clk 00:09:12]} {[%emt 00:02:26]} 11. Nc3 {[%clk
00:10:24]} {[%emt 00:01:00]} Nb4 {[%clk 00:09:10]} {[%emt 00:00:03]} 12. Nxe6
{[%clk 00:10:05]} {[%emt 00:00:20]} fxe6 {[%clk 00:08:50]} {[%emt 00:00:23]} 13.
Rxe6+ {[%clk 00:09:58]} {[%emt 00:00:10]} Be7 {[%clk 00:08:28]} {[%emt
00:00:24]} 14. Bg5 {[%clk 00:08:47]} {[%emt 00:01:12]} Nc6 {[%clk 00:08:09]}
{[%emt 00:00:21]} 15. Rae1 {[%clk 00:07:31]} {[%emt 00:01:19]} O-O-O {[%clk
00:06:41]} {[%emt 00:01:30]} 16. Bxe7 {[%clk 00:07:13]} {[%emt 00:00:19]} Nxe7
{[%clk 00:05:15]} {[%emt 00:01:29]} 17. Rxe7 {[%clk 00:07:08]} {[%emt
00:00:06]} b5 {[%clk 00:04:51]} {[%emt 00:00:27]} 18. Nxb5 {[%clk 00:06:48]}
{[%emt 00:00:23]} Rhe8 {[%clk 00:04:48]} {[%emt 00:00:05]} 19. Rxe8 {[%clk
00:06:31]} {[%emt 00:00:19]} Rxe8 {[%clk 00:04:24]} {[%emt 00:00:25]} 20. Rxe8+
{[%clk 00:06:30]} {[%emt 00:00:02]} Qxe8 {[%clk 00:04:25]} {[%emt 00:00:01]} 21.
Qxc7# {[%emt 00:00:02]} 1-0

[Event "St Kilda East and Caulfield Chess Club RAPID Term 3, 2025"]
[Site "st kilda east, Australia"]
[Date "2025.07.24"]
[Round "7.2"]
[White "Bambridge, Greg"]
[Black "Yong, Leonard"]
[Result "1-0"]
[TimeControl "13 minutes per game plus 2 seconds from move 1"]
[WhiteElo "1081"]
[BlackElo "368"]

1. e4 {[%clk 00:12:59]} {[%emt 00:00:03]} e5 {[%clk 00:13:01]} {[%emt
00:00:04]} 2. Nf3 {[%clk 00:12:59]} Nc6 {[%clk 00:13:00]} {[%emt 00:00:02]} 3.
d4 {[%clk 00:13:00]} {[%emt 00:00:02]} f6 {[%clk 00:12:56]} {[%emt 00:00:06]} 4.
dxe5 {[%clk 00:12:39]} {[%emt 00:00:23]} fxe5 {[%clk 00:12:53]} {[%emt
00:00:05]} 5. Bc4 {[%clk 00:12:18]} {[%emt 00:00:22]} Bc5 {[%clk 00:12:46]}
{[%emt 00:00:09]} 6. O-O {[%clk 00:12:13]} {[%emt 00:00:06]} d6 {[%clk
00:12:45]} {[%emt 00:00:04]} 7. h3 {[%clk 00:12:13]} {[%emt 00:00:02]} Bd7
{[%clk 00:12:41]} {[%emt 00:00:06]} 8. c3 {[%clk 00:12:00]} {[%emt 00:00:15]}
Qe7 {[%clk 00:12:36]} {[%emt 00:00:07]} 9. b4 {[%clk 00:11:58]} {[%emt
00:00:04]} Bb6 {[%clk 00:12:26]} {[%emt 00:00:12]} 10. a4 {[%clk 00:11:58]}
{[%emt 00:00:02]} a5 {[%clk 00:12:24]} {[%emt 00:00:04]} 11. Qb3 {[%clk
00:11:07]} {[%emt 00:00:53]} Nf6 {[%clk 00:11:47]} {[%emt 00:00:39]} 12. Bg5
{[%clk 00:11:03]} {[%emt 00:00:05]} Be6 {[%clk 00:11:24]} {[%emt 00:00:33]} 13.
Bxe6 {[%clk 00:10:54]} {[%emt 00:00:08]} axb4 {[%clk 00:11:03]} {[%emt
00:00:23]} 14. cxb4 {[%clk 00:10:48]} {[%emt 00:00:07]} Bd4 {[%clk 00:10:17]}
{[%emt 00:00:48]} 15. Nc3 {[%clk 00:10:12]} {[%emt 00:00:38]} Qf8 {[%clk
00:09:15]} {[%emt 00:01:03]} 16. Rae1 {[%clk 00:09:17]} {[%emt 00:00:58]} Rd8
{[%clk 00:08:23]} {[%emt 00:00:55]} 17. Nb5 {[%clk 00:09:15]} {[%emt 00:00:04]}
Qe7 {[%clk 00:07:21]} {[%emt 00:01:02]} 18. Bd5 {[%clk 00:09:12]} {[%emt
00:00:06]} Nb8 {[%clk 00:07:06]} {[%emt 00:00:17]} 19. Nbxd4 {[%clk 00:09:08]}
{[%emt 00:00:06]} exd4 {[%clk 00:07:03]} {[%emt 00:00:05]} 20. e5 {[%clk
00:08:59]} {[%emt 00:00:11]} Qf8 {[%clk 00:05:24]} {[%emt 00:01:42]} 21. exf6+
{[%clk 00:08:53]} {[%emt 00:00:08]} Kd7 {[%clk 00:05:09]} {[%emt 00:00:17]} 22.
Be6+ {[%clk 00:08:52]} {[%emt 00:00:03]} Ke8 {[%clk 00:05:03]} {[%emt
00:00:08]} 23. Bc8+ {[%clk 00:08:37]} {[%emt 00:00:16]} Qe7 {[%clk 00:04:33]}
{[%emt 00:00:33]} 24. Rxe7+ {[%clk 00:08:36]} {[%emt 00:00:03]} Kf8 {[%clk
00:04:30]} {[%emt 00:00:05]} 25. fxg7# {[%clk 00:08:34]} {[%emt 00:00:04]} 1-0

[Event "St Kilda East and Caulfield Chess Club RAPID Term 3, 2025"]
[Site "st kilda east, Australia"]
[Date "2025.07.24"]
[Round "7.3"]
[White "Beckman, John"]
[Black "O'Connor, Alistair"]
[Result "1-0"]
[TimeControl "13 minutes per game plus 2 seconds from move 1"]
[WhiteElo "859"]
[BlackElo "1000"]

1. e4 {[%clk 00:13:00]} {[%emt 00:00:01]} e6 {[%clk 00:12:59]} {[%emt
00:00:05]} 2. d4 {[%clk 00:12:58]} {[%emt 00:00:02]} d5 {[%clk 00:12:58]}
{[%emt 00:00:03]} 3. Nc3 {[%clk 00:12:50]} {[%emt 00:00:10]} Be7 {[%clk
00:12:57]} {[%emt 00:00:04]} 4. Nf3 {[%clk 00:12:36]} {[%emt 00:00:15]} Nf6
{[%clk 00:12:54]} {[%emt 00:00:05]} 5. e5 {[%clk 00:12:33]} {[%emt 00:00:05]}
Nfd7 {[%clk 00:12:54]} {[%emt 00:00:03]} 6. Bd3 {[%clk 00:12:14]} {[%emt
00:00:20]} c5 {[%clk 00:12:54]} {[%emt 00:00:03]} 7. Nb5 {[%emt 00:00:28]} a6
{[%clk 00:12:48]} {[%emt 00:00:04]} 8. Nd6+ {[%clk 00:11:48]} {[%emt 00:00:05]}
Bxd6 {[%clk 00:12:48]} {[%emt 00:00:03]} 9. exd6 {[%clk 00:11:47]} {[%emt
00:00:02]} cxd4 {[%emt 00:00:05]} 10. Nxd4 {[%clk 00:11:37]} {[%emt 00:00:10]}
Nc6 {[%clk 00:12:47]} {[%emt 00:00:03]} 11. Nxc6 {[%emt 00:00:16]} bxc6 {[%clk
00:12:43]} {[%emt 00:00:03]} 12. O-O {[%clk 00:11:16]} {[%emt 00:00:10]} O-O
{[%clk 00:12:42]} {[%emt 00:00:04]} 13. Qh5 {[%clk 00:11:00]} {[%emt 00:00:17]}
Nf6 {[%clk 00:12:41]} {[%emt 00:00:04]} 14. Qe5 {[%clk 00:10:51]} {[%emt
00:00:10]} a5 {[%clk 00:12:41]} {[%emt 00:00:04]} 15. Bg5 {[%clk 00:10:48]}
{[%emt 00:00:03]} Ba6 {[%clk 00:12:41]} {[%emt 00:00:03]} 16. Rad1 {[%clk
00:10:37]} {[%emt 00:00:13]} Bxd3 {[%clk 00:12:09]} {[%emt 00:00:35]} 17. Rxd3
{[%clk 00:10:36]} {[%emt 00:00:02]} Ng4 {[%clk 00:12:09]} {[%emt 00:00:03]} 18.
Qf4 {[%clk 00:10:19]} {[%emt 00:00:18]} Nf6 {[%clk 00:12:08]} {[%emt 00:00:05]}
19. Qg3 {[%clk 00:09:14]} {[%emt 00:01:06]} Ne4 {[%clk 00:12:03]} {[%emt
00:00:08]} 20. Qh4 {[%clk 00:09:07]} {[%emt 00:00:08]} Qxg5 {[%clk 00:12:03]}
{[%emt 00:00:04]} 21. Qh3 {[%clk 00:08:40]} {[%emt 00:00:29]} Nxd6 {[%clk
00:11:22]} {[%emt 00:00:43]} 22. Rg3 {[%clk 00:08:25]} {[%emt 00:00:16]} Qf5
{[%clk 00:11:22]} {[%emt 00:00:03]} 23. Qh6 {[%clk 00:07:57]} {[%emt 00:00:29]}
Ne8 {[%clk 00:11:07]} {[%emt 00:00:17]} 24. c3 {[%clk 00:07:25]} {[%emt
00:00:33]} Qf6 {[%clk 00:11:06]} {[%emt 00:00:04]} 25. Qd2 {[%clk 00:07:15]}
{[%emt 00:00:10]} Nd6 {[%clk 00:11:04]} {[%emt 00:00:05]} 26. f3 {[%clk
00:07:03]} {[%emt 00:00:14]} Rab8 {[%clk 00:10:33]} {[%emt 00:00:34]} 27. b3
{[%clk 00:07:01]} {[%emt 00:00:04]} a4 {[%clk 00:10:30]} {[%emt 00:00:06]} 28.
b4 {[%clk 00:06:56]} {[%emt 00:00:07]} Nc4 {[%clk 00:10:23]} {[%emt 00:00:08]}
29. Qc1 {[%clk 00:06:35]} {[%emt 00:00:23]} c5 {[%clk 00:09:51]} {[%emt
00:00:40]} 30. a3 {[%clk 00:06:23]} {[%emt 00:00:09]} cxb4 {[%clk 00:09:51]}
{[%emt 00:00:03]} 31. cxb4 {[%clk 00:06:21]} {[%emt 00:00:04]} Qb2 {[%clk
00:09:50]} {[%emt 00:00:03]} 32. Qh6 {[%clk 00:05:59]} {[%emt 00:00:24]} Nxa3
{[%clk 00:09:35]} {[%emt 00:00:18]} 33. h4 {[%clk 00:05:23]} {[%emt 00:00:37]}
Rxb4 {[%clk 00:08:52]} {[%emt 00:00:45]} 34. Kh2 {[%clk 00:05:04]} {[%emt
00:00:19]} Qf6 {[%clk 00:08:51]} {[%emt 00:00:04]} 35. Qxf6 {[%clk 00:04:59]}
{[%emt 00:00:07]} Rxh4+ {[%clk 00:08:43]} {[%emt 00:00:11]} 36. Kg1 {[%clk
00:04:56]} {[%emt 00:00:05]} g6 {[%clk 00:08:18]} {[%emt 00:00:27]} 37. Qxh4
{[%clk 00:04:54]} {[%emt 00:00:03]} Nc4 {[%clk 00:08:16]} {[%emt 00:00:05]} 38.
Rh3 {[%clk 00:04:46]} {[%emt 00:00:09]} h5 {[%clk 00:08:12]} {[%emt 00:00:05]}
39. Qg5 {[%clk 00:04:31]} {[%emt 00:00:19]} Rb8 {[%clk 00:07:52]} {[%emt
00:00:22]} 40. Rxh5 {[%clk 00:04:28]} {[%emt 00:00:04]} a3 {[%clk 00:07:51]}
{[%emt 00:00:04]} 41. Qg3 {[%clk 00:04:00]} {[%emt 00:00:29]} a2 {[%clk
00:07:47]} {[%emt 00:00:08]} 1-0